[Event "Nordic Chess-ch 2019"]
[Site "Sarpsborg"]
[Date "2019.06.23"]
[Round "4.17"]
[White "Haugli, Petter"]
[Black "Kreken, Eivind Grunt"]
[Result "1-0"]
[ECO "A34"]
[WhiteElo "2223"]
[BlackElo "1784"]
[Annotator "NA"]
[PlyCount "65"]
[EventDate "2019.06.21"]
[EventType "swiss"]
[EventCountry "NOR"]
[SourceTitle "playchess.com"]
[Source "ChessBase"]
[SourceQuality "1"]
[TimeControl "40/5400+30:1800+30"]

1. c4 {[%emt 0:00:00]} c5 {[%emt 0:00:00]} 2. Nc3 {[%emt 0:00:00]} Nf6 {[%emt 0:00:00]} 3. g3 {[%emt 0:00:00]} d5 {[%emt 0:00:05]} 4. cxd5 {[%emt 0:00:00]} Nxd5 {[%emt 0:00:07]} 5. Bg2 {[%emt 0:00:07]} Nc7 {[%emt 0:00:11]} 6. Nf3 {[%emt 0:00:35]} Nc6 {[%emt 0:00:09]} 7. O-O {[%emt 0:00:32]} e5 {[%emt 0:00:10]} 8. d3 {[%emt 0:00:52]} Be7 {[%emt 0:00:09]} 9. Nd2 {[%emt 0:00:54]} Bd7 {[%emt 0:00:19]} 10. Nc4 {[%emt 0:00:19]} f6 {[%emt 0:00:55]} 11. f4 {[%emt 0:01:57]} b5 {[%emt 0:00:19]} 12. Ne3 {[%emt 0:00:42]} exf4 {[%emt 0:00:10]} 13. Rxf4 {[%emt 0:00:13]} O-O {[%emt 0:10:04]} 14. Nf5 {[%emt 0:04:04]} g6 {[%emt 0:11:10]} (14... Rc8 $11) 15. Nxe7+ $14 {[%emt 0:01:31]} Qxe7 {[%emt 0:00:19]} 16. Rf2 {[%emt 0:07:48]} Rab8 {[%emt 0:05:17]} 17. Bh6 {[%emt 0:20:05]} Rfc8 {[%emt 0:14:05]} 18. Ne4 {[%emt 0:18:00]} Nd5 {[%emt 0:12:01]} 19. Qf1 {[%emt 0:11:18]} f5 {[%emt 0:04:48]} 20. Bg5 {[%emt 0:01:18]} Qf8 {[%emt 0:00:44]} 21. Nc3 {[%emt 0:05:32]} Nxc3 {[%emt 0:04:14]} 22. bxc3 {[%emt 0:00:03]} Be6 {[%emt 0:06:52]} 23. e4 {[%emt 0:02:32]} Qg7 {[%emt 0:02:20]} 24. exf5 {[%emt 0:00:26]} gxf5 {[%emt 0:01:46]} 25. Bf4 {[%emt 0:04:32]} Rb7 {[%emt 0:06:49]} 26. Re1 {[%emt 0:03:19]} Qd7 {[%emt 0:07:34]} 27. Be3 {[%emt 0:04:02]} Qd6 {[%emt 0:01:33]} 28. Bxc5 {[%emt 0:01:41]} Qd7 {[%emt 0:01:30]} 29. Qe2 {[%emt 0:04:25]} Bd5 {[%emt 0:02:42]} 30. Bh3 {[%emt 0:01:25]} Qg7 {[%emt 0:01:54]} 31. Bxf5 {[%emt 0:00:49]} Rd8 {[%emt 0:00:25]} 32. Be6+ {[%emt 0:00:50]} Bxe6 {[%emt 0:00:21]} 33. Qxe6+ {[%emt 0:00:05]} 1-0

[Event "Nordic Chess-ch 2019"]
[Site "Sarpsborg"]
[Date "2019.06.23"]
[Round "4.18"]
[White "Abdrlauf, Elham"]
[Black "Tenold, Andreas"]
[Result "1-0"]
[ECO "B77"]
[WhiteElo "2207"]
[BlackElo "1959"]
[Annotator "NA"]
[PlyCount "87"]
[EventDate "2019.06.21"]
[EventType "swiss"]
[EventCountry "NOR"]
[SourceTitle "playchess.com"]
[Source "ChessBase"]
[SourceQuality "1"]
[TimeControl "40/5400+30:1800+30"]

1. e4 {[%emt 0:06:30]} c5 {[%emt 0:00:00]} 2. Nf3 {[%emt 0:00:28]} g6 {[%emt 0:00:00]} 3. d4 {[%emt 0:00:05]} cxd4 {[%emt 0:00:06]} 4. Nxd4 {[%emt 0:00:04]} Nc6 {[%emt 0:00:20]} 5. Nc3 {[%emt 0:00:06]} Bg7 {[%emt 0:00:05]} 6. Be3 {[%emt 0:00:05]} Nf6 {[%emt 0:00:08]} 7. Bc4 {[%emt 0:00:04]} O-O {[%emt 0:00:11]} 8. Bb3 {[%emt 0:00:02]} d6 {[%emt 0:00:10]} 9. f3 {[%emt 0:00:10]} Bd7 {[%emt 0:00:10]} 10. Qd2 {[%emt 0:00:10]} Nxd4 {[%emt 0:00:11]} 11. Bxd4 {[%emt 0:00:05]} b5 {[%emt 0:00:22]} 12. h4 {[%emt 0:00:09]} a5 {[%emt 0:01:55]} 13. h5 {[%emt 0:02:30]} a4 {[%emt 0:09:03]} 14. Bd5 {[%emt 0:00:47]} b4 {[%emt 0:00:29]} 15. Ne2 {[%emt 0:00:43]} Rc8 $14 {[%emt 0:01:18]} (15... e5 $11 16. Bxa8 exd4) 16. hxg6 {[%emt 0:01:25]} hxg6 {[%emt 0:00:13]} 17. Bxf6 {[%emt 0:00:26]} exf6 {[%emt 0:00:02]} 18. Nf4 {[%emt 0:10:01]} f5 {[%emt 0:22:21]} 19. Nxg6 {[%emt 0:00:37]} Qf6 {[%emt 0:01:19]} 20. Nxf8 {[%emt 0:01:07]} Qxb2 {[%emt 0:02:10]} 21. O-O {[%emt 0:00:57]} Rxc2 {[%emt 0:21:56]} 22. Rab1 {[%emt 0:00:37]} Rxd2 {[%emt 0:07:21]} 23. Rxb2 {[%emt 0:00:28]} Rxb2 {[%emt 0:00:08]} 24. Nxd7 {[%emt 0:00:02]} fxe4 {[%emt 0:02:37]} 25. fxe4 {[%emt 0:00:15]} b3 {[%emt 0:01:02]} 26. axb3 {[%emt 0:00:00]} a3 {[%emt 0:00:00]} 27. b4 {[%emt 0:05:07]} a2 {[%emt 0:02:51]} 28. Bxf7+ {[%emt 0:00:07]} Kh8 {[%emt 0:00:08]} 29. Bxa2 {[%emt 0:01:56]} Rxa2 {[%emt 0:00:19]} 30. Rb1 {[%emt 0:02:22]} Ra7 {[%emt 0:02:16]} 31. Nb8 {[%emt 0:00:20]} Rb7 {[%emt 0:00:56]} 32. Nc6 {[%emt 0:01:12]} Rb5 {[%emt 0:00:46]} 33. Kf2 {[%emt 0:01:17]} Kg8 {[%emt 0:01:33]} 34. Ne7+ {[%emt 0:00:59]} Kf7 {[%emt 0:00:19]} 35. Nd5 {[%emt 0:00:14]} Bd4+ {[%emt 0:04:13]} 36. Ke2 {[%emt 0:00:33]} Ba7 {[%emt 0:00:14]} 37. Kd3 {[%emt 0:00:26]} Rb7 {[%emt 0:00:57]} 38. Rf1+ {[%emt 0:01:33]} Kg7 {[%emt 0:00:53]} 39. Rc1 {[%emt 0:02:12]} Bb8 {[%emt 0:00:41]} 40. Rc6 {[%emt 0:00:41]} Rd7 {[%emt 0:01:47]} 41. b5 {[%emt 0:30:11]} Kg6 {[%emt 0:32:15]} 42. b6 {[%emt 0:00:12]} Kg5 {[%emt 0:01:00]} 43. Rc8 {[%emt 0:00:03]} Rb7 {[%emt 0:00:16]} 44. Kd4 {[%emt 1:04:42]} 1-0

[Event "Nordic Chess-ch 2019"]
[Site "Sarpsborg"]
[Date "2019.06.23"]
[Round "4.19"]
[White "Kvaloy, Aksel Bu"]
[Black "Ptacnikova, Lenka"]
[Result "1-0"]
[ECO "A05"]
[WhiteElo "2138"]
[BlackElo "2145"]
[Annotator "NA"]
[PlyCount "73"]
[EventDate "2019.06.21"]
[EventType "swiss"]
[EventCountry "NOR"]
[SourceTitle "playchess.com"]
[Source "ChessBase"]
[SourceQuality "1"]
[TimeControl "40/5400+30:1800+30"]

1. e4 {[%emt 0:00:00]} c5 {[%emt 0:00:00]} 2. Nf3 {[%emt 0:00:00]} e6 {[%emt 0:00:00]} 3. g3 {[%emt 0:00:19]} b6 {[%emt 0:02:41]} 4. Bg2 {[%emt 0:00:50]} Bb7 {[%emt 0:00:05]} 5. d3 {[%emt 0:00:32]} Nf6 {[%emt 0:04:49]} 6. O-O {[%emt 0:01:56]} Be7 {[%emt 0:02:05]} 7. Re1 {[%emt 0:10:17]} d6 {[%emt 0:06:21]} 8. c3 {[%emt 0:01:24]} O-O {[%emt 0:00:17]} 9. a3 {[%emt 0:02:37]} a5 {[%emt 0:01:24]} 10. a4 $14 {[%emt 0:01:25]} d5 {[%emt 0:01:05]} 11. e5 {[%emt 0:01:30]} Nfd7 {[%emt 0:00:07]} 12. Na3 {[%emt 0:01:56]} Nc6 {[%emt 0:03:55]} 13. h4 {[%emt 0:02:32]} Re8 {[%emt 0:09:20]} 14. Bf4 {[%emt 0:04:25]} Na7 {[%emt 0:02:52]} 15. h5 {[%emt 0:12:06]} h6 {[%emt 0:04:09]} 16. Kh2 {[%emt 0:11:19]} Bc6 {[%emt 0:01:03]} 17. Qb3 {[%emt 0:02:00]} c4 {[%emt 0:05:42]} 18. dxc4 {[%emt 0:10:00]} Nc5 {[%emt 0:00:09]} 19. Qa2 {[%emt 0:04:41]} Nd3 {[%emt 0:27:46]} 20. Red1 {[%emt 0:07:58]} Nxf2 {[%emt 0:06:11]} 21. cxd5 {[%emt 0:09:16]} exd5 {[%emt 0:07:27]} 22. Rf1 {[%emt 0:02:26]} Nd3 {[%emt 0:06:23]} 23. Nd4 {[%emt 0:01:23]} Bb7 {[%emt 0:00:25]} 24. Rad1 {[%emt 0:05:39]} Nxf4 {[%emt 0:00:19]} 25. gxf4 {[%emt 0:00:05]} Bxa3 {[%emt 0:04:29]} 26. Qxa3 {[%emt 0:01:02]} Qh4+ {[%emt 0:01:38]} 27. Kg1 {[%emt 0:00:04]} Qxh5 {[%emt 0:00:17]} 28. Qd6 {[%emt 0:01:50]} Ba6 {[%emt 0:01:41]} 29. Rf3 {[%emt 0:02:59]} Nc8 {[%emt 0:00:39]} 30. Qc6 {[%emt 0:01:42]} Ne7 {[%emt 0:00:19]} 31. Qxb6 {[%emt 0:00:13]} Ng6 {[%emt 0:00:41]} 32. Rd2 {[%emt 0:00:51]} Nh4 {[%emt 0:00:37]} 33. Rg3 {[%emt 0:00:32]} Nxg2 {[%emt 0:00:56]} 34. Rdxg2 {[%emt 0:00:13]} Qd1+ {[%emt 0:00:21]} 35. Kh2 {[%emt 0:00:05]} g5 {[%emt 0:00:44]} 36. Qxh6 {[%emt 0:00:41]} f6 {[%emt 0:00:07]} 37. Rxg5+ {[%emt 0:00:15]} 1-0

[Event "Nordic Chess-ch 2019"]
[Site "Sarpsborg"]
[Date "2019.06.23"]
[Round "4.20"]
[White "Neretljak, Nedzad"]
[Black "Johansen, Torbjorn Reidar"]
[Result "0-1"]
[ECO "B58"]
[WhiteElo "2114"]
[BlackElo "1754"]
[Annotator "NA"]
[PlyCount "116"]
[EventDate "2019.06.21"]
[EventType "swiss"]
[EventCountry "NOR"]
[SourceTitle "playchess.com"]
[Source "ChessBase"]
[SourceQuality "1"]
[TimeControl "40/5400+30:1800+30"]

1. e4 {[%emt 0:00:00]} c5 {[%emt 0:00:00]} 2. Nf3 {[%emt 0:00:02]} d6 {[%emt 0:00:00]} 3. Nc3 {[%emt 0:00:29]} Nf6 {[%emt 0:01:14]} 4. d4 {[%emt 0:00:35]} cxd4 {[%emt 0:00:10]} 5. Nxd4 {[%emt 0:00:07]} Nc6 {[%emt 0:00:08]} 6. h3 {[%emt 0:00:48]} e5 {[%emt 0:03:34]} 7. Nf3 {[%emt 0:03:19]} h6 {[%emt 0:02:59]} 8. Be3 {[%emt 0:02:11]} Be6 $11 {[%emt 0:02:09]} 9. Be2 {[%emt 0:14:19]} Be7 {[%emt 0:08:05]} 10. O-O {[%emt 0:01:25]} O-O {[%emt 0:01:00]} 11. Qd2 {[%emt 0:04:27]} d5 {[%emt 0:08:57]} 12. exd5 {[%emt 0:01:20]} Nxd5 {[%emt 0:00:48]} 13. Nxd5 {[%emt 0:00:24]} Qxd5 {[%emt 0:00:20]} 14. Qc1 {[%emt 0:06:33]} e4 {[%emt 0:03:32]} 15. Rd1 {[%emt 0:01:06]} Qf5 {[%emt 0:00:41]} 16. Nd4 {[%emt 0:05:01]} Nxd4 {[%emt 0:00:41]} 17. Bxd4 {[%emt 0:00:05]} Qg6 {[%emt 0:02:00]} 18. Kh1 {[%emt 0:02:02]} f5 {[%emt 0:03:39]} 19. Be5 {[%emt 0:13:02]} Qf7 {[%emt 0:14:01]} 20. f4 {[%emt 0:05:19]} Rac8 {[%emt 0:04:01]} 21. c3 {[%emt 0:00:49]} Rfd8 {[%emt 0:05:01]} 22. Qe3 {[%emt 0:01:39]} b6 {[%emt 0:00:51]} 23. b3 {[%emt 0:00:57]} Qg6 {[%emt 0:06:22]} 24. Ba6 {[%emt 0:00:31]} Rxd1+ {[%emt 0:00:19]} 25. Rxd1 {[%emt 0:00:09]} Rd8 {[%emt 0:00:15]} 26. Rxd8+ {[%emt 0:01:20]} Bxd8 {[%emt 0:00:09]} 27. Kh2 {[%emt 0:02:38]} Qe8 {[%emt 0:03:33]} 28. Qd4 {[%emt 0:00:25]} g5 {[%emt 0:00:47]} 29. Bh8 {[%emt 0:00:27]} Qd7 {[%emt 0:00:47]} 30. Qxd7 {[%emt 0:14:14]} Bxd7 {[%emt 0:01:35]} 31. Be5 {[%emt 0:00:01]} b5 {[%emt 0:00:23]} 32. c4 {[%emt 0:05:09]} e3 {[%emt 0:03:21]} 33. Kg1 {[%emt 0:00:37]} Bb6 {[%emt 0:02:55]} 34. Kf1 {[%emt 0:00:23]} Bc6 {[%emt 0:00:10]} 35. Bxb5 {[%emt 0:02:36]} Be4 {[%emt 0:01:08]} 36. b4 {[%emt 0:02:28]} Bd3+ {[%emt 0:03:51]} 37. Ke1 {[%emt 0:00:17]} gxf4 {[%emt 0:01:09]} 38. a4 {[%emt 0:02:28]} f3 {[%emt 0:02:02]} 39. gxf3 {[%emt 0:02:29]} Bd8 {[%emt 0:00:12]} 40. Kd1 {[%emt 0:06:38]} e2+ {[%emt 0:01:18]} 41. Kd2 {[%emt 0:31:10]} Bh4 {[%emt 0:30:22]} 42. Kxd3 {[%emt 0:00:00]} e1=Q {[%emt 0:00:00]} 43. Kd4 {[%emt 0:00:00]} Qxb4 {[%emt 0:00:00]} 44. Kd5 {[%emt 0:00:00]} Kf7 {[%emt 0:00:00]} 45. Bd6 {[%emt 0:00:00]} Qd2+ {[%emt 0:00:00]} 46. Kc6 {[%emt 0:00:00]} Ke6 {[%emt 0:00:00]} 47. c5 {[%emt 0:00:00]} Qd5+ {[%emt 0:00:00]} 48. Kc7 {[%emt 0:00:00]} Be7 {[%emt 0:00:00]} 49. Bd7+ {[%emt 0:00:00]} Kf7 {[%emt 0:00:00]} 50. Bc6 {[%emt 0:00:00]} Bxd6+ {[%emt 0:00:00]} 51. cxd6 {[%emt 0:00:00]} Qa5+ {[%emt 0:00:00]} 52. Kd7 {[%emt 0:00:00]} Qb6 {[%emt 0:00:00]} 53. f4 {[%emt 0:00:00]} a6 {[%emt 0:00:00]} 54. h4 {[%emt 0:00:00]} Qd4 {[%emt 0:00:00]} 55. Kc7 {[%emt 0:00:00]} Qxf4 {[%emt 0:00:00]} 56. Bd5+ {[%emt 0:00:00]} Kf6 {[%emt 0:00:00]} 57. Kc6 {[%emt 0:00:00]} Qxa4+ {[%emt 0:00:00]} 58. Kc7 {[%emt 0:00:00]} Qa5+ {[%emt 0:00:00]} 0-1

[Event "Nordic Chess-ch 2019"]
[Site "Sarpsborg"]
[Date "2019.06.23"]
[Round "4.21"]
[White "Wahlund, Max"]
[Black "Henriksen, Morgan"]
[Result "1-0"]
[ECO "A04"]
[WhiteElo "2103"]
[BlackElo "1717"]
[Annotator "NA"]
[PlyCount "67"]
[EventDate "2019.06.21"]
[EventType "swiss"]
[EventCountry "NOR"]
[SourceTitle "playchess.com"]
[Source "ChessBase"]
[SourceQuality "1"]
[TimeControl "40/5400+30:1800+30"]

1. Nf3 {[%emt 0:03:22]} c5 {[%emt 0:01:01]} 2. g3 {[%emt 0:00:09]} d6 {[%emt 0:00:35]} 3. Bg2 {[%emt 0:00:06]} e5 {[%emt 0:00:28]} 4. O-O {[%emt 0:00:31]} Nf6 {[%emt 0:00:06]} 5. b4 {[%emt 0:00:44]} c4 {[%emt 0:04:18]} 6. d3 {[%emt 0:00:34]} cxd3 {[%emt 0:01:08]} 7. exd3 {[%emt 0:01:55]} Be7 {[%emt 0:00:14]} 8. c4 {[%emt 0:00:35]} O-O {[%emt 0:00:15]} 9. Bb2 {[%emt 0:01:31]} Nbd7 {[%emt 0:02:05]} 10. Nc3 {[%emt 0:01:31]} Rb8 {[%emt 0:02:45]} 11. d4 {[%emt 0:06:22]} exd4 {[%emt 0:01:29]} 12. Qxd4 {[%emt 0:01:08]} Qb6 $2 {[%emt 0:04:55]} (12... Nb6 $16) 13. Nd5 $18 {[%emt 0:00:08] Double Attack} Qd8 {[%emt 0:03:50]} 14. Rae1 {[%emt 0:01:47]} Re8 {[%emt 0:02:36]} 15. Nxe7+ {[%emt 0:00:39]} Rxe7 {[%emt 0:00:17]} 16. Qxd6 {[%emt 0:00:35]} Rxe1 {[%emt 0:01:15]} 17. Rxe1 {[%emt 0:00:08]} Qb6 {[%emt 0:01:47]} 18. Qxb6 {[%emt 0:03:13]} Nxb6 {[%emt 0:06:35]} 19. Bxf6 {[%emt 0:03:20]} gxf6 {[%emt 0:00:08]} 20. Re8+ {[%emt 0:00:05]} Kg7 {[%emt 0:00:07]} 21. Nd2 {[%emt 0:01:31]} Ra8 {[%emt 0:00:33]} 22. c5 {[%emt 0:00:36]} Be6 {[%emt 0:05:12]} 23. Rxa8 {[%emt 0:00:31]} Nxa8 {[%emt 0:00:17]} 24. Bxb7 {[%emt 0:00:05]} Nc7 {[%emt 0:00:16]} 25. a4 {[%emt 0:01:01]} Kf8 {[%emt 0:03:44]} 26. b5 {[%emt 0:02:21]} Ke7 {[%emt 0:00:36]} 27. b6 {[%emt 0:00:37]} axb6 {[%emt 0:00:38]} 28. cxb6 {[%emt 0:00:02]} Nd5 {[%emt 0:01:00]} 29. a5 {[%emt 0:00:05]} Kd8 {[%emt 0:06:05]} 30. Ne4 {[%emt 0:01:08]} h6 {[%emt 0:11:12]} 31. Nc5 {[%emt 0:00:07]} h5 {[%emt 0:06:22]} 32. Nxe6+ {[%emt 0:00:07]} fxe6 {[%emt 0:00:28]} 33. Bxd5 {[%emt 0:00:05]} exd5 {[%emt 0:00:34]} 34. a6 {[%emt 0:00:05]} 1-0

[Event "Nordic Chess-ch 2019"]
[Site "Sarpsborg"]
[Date "2019.06.23"]
[Round "4.22"]
[White "Hamre, Kenneth"]
[Black "Strand, Vetle Bjorge"]
[Result "0-1"]
[ECO "C14"]
[WhiteElo "2033"]
[BlackElo "1609"]
[Annotator "NA"]
[PlyCount "121"]
[EventDate "2019.06.21"]
[EventType "swiss"]
[EventCountry "NOR"]
[SourceTitle "playchess.com"]
[Source "ChessBase"]
[SourceQuality "1"]
[TimeControl "40/5400+30:1800+30"]

1. e4 {[%emt 0:00:00]} e6 {[%emt 0:00:00]} 2. d4 {[%emt 0:00:00]} d5 {[%emt 0:00:00]} 3. Nc3 {[%emt 0:00:00]} Nf6 {[%emt 0:00:00]} 4. Bg5 {[%emt 0:00:00]} Be7 {[%emt 0:00:00]} 5. e5 {[%emt 0:00:07]} Nfd7 {[%emt 0:00:05]} 6. h4 {[%emt 0:00:11]} c5 {[%emt 0:00:24]} 7. Nf3 {[%emt 0:01:20]} cxd4 {[%emt 0:01:54]} 8. Qxd4 {[%emt 0:00:27]} Nc6 {[%emt 0:04:02]} 9. Qf4 {[%emt 0:06:00]} a6 {[%emt 0:06:45]} 10. O-O-O $11 {[%emt 0:05:15]} b5 {[%emt 0:03:08]} 11. Bd3 {[%emt 0:06:04]} Nc5 {[%emt 0:12:48]} 12. Be4 {[%emt 0:25:28]} Qc7 {[%emt 0:26:02]} 13. Bxd5 {[%emt 0:22:21]} exd5 {[%emt 0:01:53]} 14. Nxd5 {[%emt 0:00:03]} Qb7 {[%emt 0:03:43]} 15. h5 {[%emt 0:28:04]} h6 {[%emt 0:09:38]} 16. Bh4 {[%emt 0:00:38]} Bxh4 {[%emt 0:01:32]} 17. Rxh4 {[%emt 0:00:04]} Ne7 {[%emt 0:02:11]} 18. Ne3 {[%emt 0:00:09]} Be6 {[%emt 0:07:29]} 19. g4 {[%emt 0:00:40]} Nd5 {[%emt 0:04:49]} 20. Nxd5 {[%emt 0:01:11]} Bxd5 {[%emt 0:00:07]} 21. Nd4 {[%emt 0:00:31]} Ne6 {[%emt 0:01:15]} 22. Nxe6 {[%emt 0:00:01]} fxe6 {[%emt 0:01:08]} 23. g5 {[%emt 0:00:02]} Qf7 {[%emt 0:00:43]} 24. Qb4 {[%emt 0:00:45]} hxg5 {[%emt 0:01:30]} 25. Rhd4 {[%emt 0:01:00]} Rc8 {[%emt 0:02:28]} 26. f4 {[%emt 0:01:48]} Qc7 {[%emt 0:01:09]} 27. Qd2 {[%emt 0:00:34]} gxf4 {[%emt 0:00:46]} 28. Rxf4 {[%emt 0:00:12]} Rf8 {[%emt 0:01:49]} 29. Rxf8+ {[%emt 0:00:46]} Kxf8 {[%emt 0:00:07]} 30. h6 {[%emt 0:00:02]} gxh6 {[%emt 0:00:59]} 31. Qxh6+ {[%emt 0:00:12]} Ke7 {[%emt 0:00:38]} 32. Qg7+ {[%emt 0:01:30]} Kd8 {[%emt 0:01:04]} 33. Qf8+ {[%emt 0:00:30]} Kd7 {[%emt 0:00:09]} 34. Qf7+ {[%emt 0:00:33]} Kc6 {[%emt 0:00:11]} 35. Qf4 {[%emt 0:00:30]} Kb6 {[%emt 0:00:32]} 36. c3 {[%emt 0:00:29]} Qc5 {[%emt 0:01:31]} 37. Rd4 {[%emt 0:00:25]} Bxa2 {[%emt 0:02:25]} 38. Rd6+ {[%emt 0:00:07]} Rc6 {[%emt 0:00:26]} 39. Qf8 {[%emt 0:00:58]} Qe3+ {[%emt 0:02:57]} 40. Rd2 {[%emt 0:01:03]} Bb3 {[%emt 0:00:55]} 41. Qd8+ {[%emt 0:01:28]} Rc7 {[%emt 0:11:52]} 42. Qb8+ {[%emt 0:04:24]} Rb7 {[%emt 0:00:42]} 43. Qd8+ {[%emt 0:00:17]} Ka7 {[%emt 0:00:28]} 44. Qd4+ {[%emt 0:00:21]} Qxd4 {[%emt 0:00:07]} 45. Rxd4 {[%emt 0:00:03]} Bd5 {[%emt 0:00:19]} 46. b4 {[%emt 0:00:06]} Rc7 {[%emt 0:01:22]} 47. Kd2 {[%emt 0:00:41]} Rc4 {[%emt 0:00:23]} 48. Rd3 {[%emt 0:00:12]} Re4 {[%emt 0:00:35]} 49. Rg3 {[%emt 0:00:06]} Rxe5 {[%emt 0:00:46]} 50. Rg7+ {[%emt 0:00:03]} Kb6 {[%emt 0:00:25]} 51. Rd7 {[%emt 0:00:13]} Bc6 {[%emt 0:01:07]} 52. Rg7 {[%emt 0:00:19]} Rf5 {[%emt 0:01:16]} 53. Ke3 {[%emt 0:00:34]} Re5+ {[%emt 0:01:37]} 54. Kd3 {[%emt 0:00:04]} Rd5+ {[%emt 0:01:32]} 55. Ke3 {[%emt 0:01:48]} Rd7 {[%emt 0:00:28]} 56. Rg5 {[%emt 0:00:24]} Re7 {[%emt 0:00:21]} 57. Re5 {[%emt 0:00:23]} Kc7 {[%emt 0:00:10]} 58. Rg5 {[%emt 0:00:46]} Kd6 {[%emt 0:00:36]} 59. Rg6 {[%emt 0:00:28]} Kd5 {[%emt 0:00:53]} 60. Rg4 {[%emt 0:02:38]} e5 {[%emt 0:01:03]} 61. Rg5 {[%emt 0:25:12]} 0-1

[Event "Nordic Chess-ch 2019"]
[Site "Sarpsborg"]
[Date "2019.06.23"]
[Round "4.23"]
[White "Nilsen, Tobias Lang"]
[Black "Nizar, Siako"]
[Result "1-0"]
[ECO "C66"]
[WhiteElo "1986"]
[BlackElo "1209"]
[Annotator "NA"]
[PlyCount "47"]
[EventDate "2019.06.21"]
[EventType "swiss"]
[EventCountry "NOR"]
[SourceTitle "playchess.com"]
[Source "ChessBase"]
[SourceQuality "1"]
[TimeControl "40/5400+30:1800+30"]

1. e4 {[%emt 0:00:00]} e5 {[%emt 0:00:00]} 2. Nf3 {[%emt 0:00:04]} Nf6 {[%emt 0:00:00]} 3. Nc3 {[%emt 0:00:22]} Nc6 {[%emt 0:00:41]} 4. Bb5 {[%emt 0:01:05]} d6 {[%emt 0:03:25]} 5. d4 {[%emt 0:00:18]} exd4 {[%emt 0:02:17]} 6. Nxd4 {[%emt 0:00:09]} Bd7 {[%emt 0:00:35]} 7. O-O {[%emt 0:01:27]} Ne5 {[%emt 0:03:22]} 8. Be2 {[%emt 0:00:27]} Ng6 {[%emt 0:07:03]} 9. Be3 {[%emt 0:05:17]} Be7 {[%emt 0:02:04]} 10. f4 {[%emt 0:02:33]} Qc8 {[%emt 0:01:38]} 11. Kh1 $11 {[%emt 0:04:12]} (11. Bd3 $16) 11... Bg4 {[%emt 0:06:54]} 12. Nf3 {[%emt 0:08:16]} Bxf3 {[%emt 0:06:21]} 13. Bxf3 {[%emt 0:00:07]} h5 {[%emt 0:06:25]} 14. Qd2 {[%emt 0:07:09]} Qd7 {[%emt 0:10:21]} 15. Rad1 {[%emt 0:00:35]} a6 {[%emt 0:07:16]} 16. a4 {[%emt 0:10:08]} Rb8 {[%emt 0:11:56]} 17. Qe2 {[%emt 0:16:13]} Qc8 {[%emt 0:11:59]} 18. Nd5 {[%emt 0:10:03]} Ng4 {[%emt 0:10:48]} 19. Bd4 {[%emt 0:03:16]} Rh7 {[%emt 0:02:25]} 20. e5 {[%emt 0:04:27]} Kf8 {[%emt 0:02:59]} 21. Be4 {[%emt 0:01:10]} dxe5 {[%emt 0:01:22]} 22. fxe5 {[%emt 0:00:27]} Qd7 {[%emt 0:00:27]} 23. Nxe7 {[%emt 0:00:32]} Qxe7 {[%emt 0:00:20]} 24. Bxg6 {[%emt 0:00:08]} 1-0

[Event "Nordic Chess-ch 2019"]
[Site "Sarpsborg"]
[Date "2019.06.23"]
[Round "4.24"]
[White "Hanebuth, Katja"]
[Black "Unneland, Mathias"]
[Result "0-1"]
[ECO "C12"]
[WhiteElo "1463"]
[BlackElo "1980"]
[Annotator "NA"]
[PlyCount "84"]
[EventDate "2019.06.21"]
[EventType "swiss"]
[EventCountry "NOR"]
[SourceTitle "playchess.com"]
[Source "ChessBase"]
[SourceQuality "1"]
[TimeControl "40/5400+30:1800+30"]

1. e4 {[%emt 0:00:06]} e6 {[%emt 0:00:00]} 2. d4 {[%emt 0:00:09]} d5 {[%emt 0:00:00]} 3. Nc3 {[%emt 0:00:29]} Nf6 {[%emt 0:00:00]} 4. Bg5 {[%emt 0:01:14]} Bb4 {[%emt 0:00:00]} 5. e5 {[%emt 0:01:49]} h6 {[%emt 0:00:00]} 6. exf6 {[%emt 0:04:09]} hxg5 {[%emt 0:00:06]} 7. fxg7 {[%emt 0:00:14]} Rg8 {[%emt 0:00:05]} 8. Qh5 {[%emt 0:02:10]} Qf6 {[%emt 0:00:06]} 9. O-O-O {[%emt 0:01:25]} Nc6 {[%emt 0:03:20]} 10. Nb5 {[%emt 0:05:12]} Ba5 {[%emt 0:00:52]} 11. Qf3 {[%emt 0:05:09]} Qxg7 $15 {[%emt 0:06:41]} 12. Ne2 {[%emt 0:07:21]} a6 {[%emt 0:00:24]} 13. Na3 {[%emt 0:01:43]} b5 {[%emt 0:08:44]} 14. c3 {[%emt 0:01:35]} b4 {[%emt 0:01:10]} 15. Nb1 {[%emt 0:01:32]} bxc3 {[%emt 0:02:39]} 16. Nbxc3 {[%emt 0:02:27]} Bb6 {[%emt 0:01:18]} 17. Qe3 {[%emt 0:00:44]} Kd8 {[%emt 0:05:19]} 18. Na4 {[%emt 0:02:02]} Rb8 {[%emt 0:03:40]} 19. Qc3 {[%emt 0:05:27]} Bd7 {[%emt 0:02:33]} 20. Nxb6 {[%emt 0:05:51]} Rxb6 {[%emt 0:01:13]} 21. a3 {[%emt 0:00:39]} Ne5 {[%emt 0:02:10]} 22. Qa5 {[%emt 0:20:24]} Nc4 {[%emt 0:00:34]} 23. Qc5 {[%emt 0:03:03]} Nxb2 {[%emt 0:00:29]} 24. Qxb6 {[%emt 0:01:51]} cxb6 {[%emt 0:00:06]} 25. Kxb2 {[%emt 0:00:06]} Qf6 {[%emt 0:01:47]} 26. f3 {[%emt 0:01:03]} Ke7 {[%emt 0:00:42]} 27. Nc1 {[%emt 0:01:44]} a5 {[%emt 0:00:28]} 28. Ba6 {[%emt 0:01:29]} Ra8 {[%emt 0:00:06]} 29. Be2 {[%emt 0:00:27]} Rc8 {[%emt 0:01:01]} 30. Na2 {[%emt 0:01:01]} Qf4 {[%emt 0:02:02]} 31. Nc3 {[%emt 0:00:33]} Qe3 {[%emt 0:01:40]} 32. Rd3 {[%emt 0:02:27]} Qf2 {[%emt 0:00:10]} 33. Rf1 {[%emt 0:00:23]} Qxg2 {[%emt 0:00:09]} 34. Re3 {[%emt 0:00:27]} Kf8 {[%emt 0:01:05]} 35. Re5 {[%emt 0:00:31]} f6 {[%emt 0:00:15]} 36. Re3 {[%emt 0:00:55]} Qxh2 {[%emt 0:00:10]} 37. f4 {[%emt 0:01:41]} gxf4 {[%emt 0:00:23]} 38. Rxf4 {[%emt 0:00:35]} Qxf4 {[%emt 0:00:20]} 39. Rh3 {[%emt 0:00:30]} Qd2+ {[%emt 0:00:09]} 40. Kb3 {[%emt 0:00:38]} a4+ {[%emt 0:00:06]} 41. Nxa4 {[%emt 0:31:11]} Qc2+ {[%emt 0:30:10]} 42. Kb4 {[%emt 0:00:23]} Qxa4# {[%emt 0:00:04]} 0-1